Cogmind - Beta 17 @@@ ROGUE MODE // 2026.08.24 @ 15:31:30 Player: CloudSeaKing Result: Destroyed by D-53 Grenadier with Mini Grenade Launcher Performance ------------- Evolutions (0) 0 Regions Visited (2) 400 Robots Destroyed (22) 110 Value Destroyed (470) 470 Prototype IDs (5) 100 Alien Tech Used (0) 0 Bonus (0) 0 TOTAL SCORE: 1080 Bonus ------- None Cogmind --------- Core Integrity 0/250 Matter 275/300 Energy 100/100 System Corruption 0% Temperature Cool (0) Movement Treading (320) Ox2 Location -10/Mines Parts ------- > --- POWER (1) -------- (None) > --- PROPULSION (2) --- Light Treads Light Treads > --- UTILITY (2) ------ Huge Storage Unit Seismic Detector > --- WEAPON (2) ------- Assault Rifle > --- INVENTORY (25) --- High-capacity Storage Unit Visual Processing Unit Seismic Detector Weapon Shielding Light Armor Plating Particle Cannon Particle Cannon Particle Cannon Assault Rifle Assault Rifle Light Cannon Light Cannon Light Cannon Grenade Launcher Grenade Launcher Grenade Launcher Rocket Launcher Rocket Launcher Rocket Launcher Rocket Launcher Datajack Mining Claw Peak State ------------ > --- POWER ------------ Ion Engine > --- PROPULSION ------- Light Treads Compact Wheel > --- UTILITY ---------- Huge Storage Unit Seismic Detector > --- WEAPON ----------- Assault Rifle Assault Rifle > --- INVENTORY -------- Ion Engine Light Treads Light Treads Visual Processing Unit Seismic Detector Weapon Shielding Light Armor Plating Particle Cannon Particle Cannon Particle Cannon Particle Cannon Assault Rifle Assault Rifle Light Cannon Grenade Launcher Grenade Launcher Grenade Launcher Rocket Launcher Rocket Launcher Rocket Launcher Rocket Launcher Datajack [Rating: 10] Favorites ----------- Power Ion Engine Engine Ion Engine Propulsion Light Treads Treads Light Treads Wheel Compact Wheel Utility Seismic Detector Device Seismic Detector Storage Small Storage Unit Weapon Assault Rifle Ballistic Gun Assault Rifle Build | -11 -10 -10 ------- Run | Yrd Mat Min Slots Evolved . | . . . Power . | . . . Propulsion . | . . . Utility . | . . . Weapon . | . . . Parts Attached 14 | 7 5 2 Power 2 | 1 . 1 Engine 2 | 1 . 1 Core . | . . . Reactor . | . . . Propulsion 4 | 2 1 1 Treads 3 | 2 . 1 Leg . | . . . Wheel 1 | . 1 . Hover . | . . . Flight . | . . . Utility 4 | 2 2 . Device 1 | 1 . . Storage 3 | 1 2 . Processor . | . . . Hackware . | . . . Protection . | . . . Artifact . | . . . Weapon 4 | 2 2 . Energy Gun . | . . . Energy Cannon . | . . . Ballistic Gun 4 | 2 2 . Ballistic Cannon . | . . . Launcher . | . . . Special Weapon . | . . . Impact Weapon . | . . . Slashing Weapon . | . . . Piercing Weapon . | . . . Special Melee Weapon . | . . . Unidentified Prototypes . | . . . Parts Lost 5 | . . 5 Power 2 | . . 2 Propulsion 2 | . . 2 Utility . | . . . Weapon 1 | . . 1 Highest Loss Streak 5 | . . 5 To Critical Strikes . | . . . Average Backups 14 | 4 14 24 Power . | . 1 . Propulsion 2 | 2 2 1 Utility 2 | . 3 5 Weapon 7 | . 7 16 Tool/Special . | . . . Unused Backups 27 | . 6 21 Power . | . . . Propulsion 3 | . 3 . Utility 5 | . . 5 Weapon 18 | . 3 15 Tool/Special 1 | . . 1 Average Slot Usage (%) 99 | . 100 97 Engine 14 | . 14 14 Treads 20 | . 21 16 Wheel 7 | . 6 11 Device 13 | . 13 14 Storage 14 | . 14 14 Ballistic Gun 27 | . 28 27 Peak Build Rating 10 | 7 10 10 Average Rating 8 | 6 8 9 On Entrance 5 | . 7 10 Avg Prop Armor Cover (%) 12 | . 12 12 Naked Turns . | . . . Heaviest Build 90 | 15 90 90 Greatest Support 40 | 40 40 40 Greatest Overweight (x) 5 | . 5 5 Average Overweight (x) 2 | . 2 4 Largest Inventory Capacity 25 | 8 25 25 Average Capacity 15 | 7 16 25 Most Carried 25 | 7 25 25 Average Carried 14 | 4 14 24 Final Capacity 25 | 8 25 25 Final Carried 25 | 7 25 22 Class Distribution -------------------- 100% | Mutant Dominant Class ---------------- Mutant | -10/Materials Mutant | -10/Mines Resources | -11 -10 -10 ----------- Run | Yrd Mat Min Matter Collected 739 | 245 406 88 Remotely . | . . . Salvage Created 693 | 55 529 109 Parts 43 | 9 25 9 Haulers Intercepted 2 | . 2 . Recyclers Shooed 2 | 1 . 1 Parts Field Recycled . | . . . Retrieved Matter . | . . . Parts Self-Destructed . | . . . Prevented . | . . . Parts Restored . | . . . Kills | -11 -10 -10 ------- Run | Yrd Mat Min Combat Hostiles Destroyed 15 | . 11 4 Guns 15 | . 11 4 Classes Destroyed 6 | 1 5 . Worker 1 | . 1 . Builder 1 | . 1 . Tunneler 3 | 3 . . Hauler 2 | . 2 . Swarmer 5 | . 3 2 Grunt 10 | . 8 2 Best Kill Streak 4 | 2 4 2 Combat Bots Only 3 | . 3 2 Max Kills in Single Turn 2 | 1 2 1 Gunslinging . | . . . Exploded . | . . . Melee . | . . . Uniques/NPCs Destroyed . | . . . Combat | -11 -10 -10 -------- Run | Yrd Mat Min Hostile Shots Fired 101 | . 65 36 Missed 31 | . 23 8 Hits 70 | . 42 28 Projectile 70 | . 42 28 AOE 8 | . . 8 Critical Strikes 2 | . 2 . Damage Taken 1022 | . 476 546 Core 278 | . 125 153 Absorbed by Shields . | . . . Core Remaining (%) 100 | 100 . . Volleys Fired 73 | 14 47 12 Largest 2 | 2 2 2 Hottest 40 | 40 40 40 Shots Fired 146 | 28 94 24 Gun 146 | 28 94 24 Cannon . | . . . Launcher . | . . . Special . | . . . Kinetic 146 | 28 94 24 Thermal . | . . . Explosive . | . . . Electromagnetic . | . . . Robot Hit Streak 15 | 8 12 15 Robot Miss Streak 4 | 2 4 2 Penetration Max . | . . . Secondary Targets 1 | . . 1 Max Gunslinging Chain 1 | . . 1 Shots Hit Robots 98 | 19 61 18 Core Hits 35 | 3 25 7 Critical Kills . | . . . Critical Parts Destroyed . | . . . Critical Strikes . | . . . Melee Attacks . | . . . Impact . | . . . Slashing . | . . . Piercing . | . . . Sneak Attacks . | . . . Combat Hostiles . | . . . Follow-up Attacks . | . . . Damage Inflicted 1258 | 199 824 235 Guns 1237 | 193 814 230 Cannons . | . . . Explosions . | . . . Melee . | . . . Ramming 21 | 6 10 5 Kinetic 1237 | 193 814 230 Thermal . | . . . Explosive . | . . . Electromagnetic . | . . . Impact . | . . . Slashing . | . . . Piercing . | . . . Highest Corruption . | . . . Average Corruption . | . . . Corruption Purged . | . . . Corruption Blocked . | . . . Overload Shots . | . . . Overflow Damage . | . . . Projectiles . | . . . Explosions . | . . . Melee . | . . . Knockbacks . | . . . Impact . | . . . Kinetic . | . . . Secondary . | . . . Self-Inflicted Damage 6 | . 4 2 Shots . | . . . Rammed 5 | 2 2 1 Targets Rammed 5 | 2 2 1 Kicked . | . . . Crushed . | . . . Highest Temperature 20 | . 20 2 Average Temperature 5 | . 7 2 Received Heat Transfer 273 | . 219 54 Siege Activations . | . . . Martial Activations . | . . . Shielding Activations . | . . . Robots Disrupted . | . . . Combat Hostiles . | . . . Robots Corrupted . | . . . Combat Hostiles . | . . . Parts Fried . | . . . Impact Corruptions . | . . . Robots Melted . | . . . Combat Hostiles . | . . . Parts Melted . | . . . Heat Transferred . | . . . Parts Sabotaged . | . . . Parts Stolen . | . . . Parts Stripped . | . . . Power Chain Reactions . | . . . Alert | -11 -10 -10 ------- Run | Yrd Mat Min Maximum Alert Level . | . . . Low Security (%) 100 | 100 100 100 Level 1 . | . . . Level 2 . | . . . Level 3 . | . . . Level 4 . | . . . Level 5 . | . . . High Security . | . . . Max Security . | . . . Peak Influence 69 | 5 69 63 Initial 13 | . . 13 Average 16 | 1 15 39 Influence Increases 454 | 15 315 124 Destroy 0b10 Robot/C 300 | . 220 80 Destroy 0b10 Robot/NC 35 | 15 20 . Destroy Leader 64 | . 44 20 Allied During Kill 3 | . . 3 Successful Hack 35 | . 29 6 Disable Machine 15 | . . 15 Destroy Structure 2 | . 2 . Influence Decreases 446 | 15 279 152 Entered New Map 23 | . . 23 Time Decay 354 | 15 279 60 Lost Part 49 | . . 49 Lost Ally 20 | . . 20 Squads Dispatched 2 | . 2 . Investigation 2 | . 2 . Extermination . | . . . Reinforcement . | . . . Assault . | . . . Garrison . | . . . Intercept . | . . . Searches Triggered . | . . . Construction Impeded . | . . . Haulers Reinforced . | . . . Active Scanning Responses . | . . . Cargo Convoy Interrupts . | . . . Stealth | -11 -10 -10 --------- Run | Yrd Mat Min Distress Signals 1 | . . 1 Communications Jammed . | . . . Distress Signals . | . . . Times Spotted 21 | . 15 6 Peak Tracking Total 3 | . 3 3 Tactical Retreats . | . . . Traps | -11 -10 -10 ------- Run | Yrd Mat Min Traps Triggered 3 | . 3 . Indirectly . | . . . Trap Hack Attempts . | . . . Triggered . | . . . Disarmed . | . . . Reprogrammed . | . . . Reused . | . . . Traps Extracted . | . . . Installed . | . . . Triggered . | . . . Machines | -11 -10 -10 ---------- Run | Yrd Mat Min Machines Disabled 1 | . . 1 Max in Single Turn 1 | . . 1 Machines Repaired . | . . . Machines Dismantled . | . . . Machines Sabotaged . | . . . Overloaded Fab Kills . | . . . Hacking | -11 -10 -10 --------- Run | Yrd Mat Min Machines Accessed 11 | . 10 1 Terminals 9 | . 8 1 Fabricators . | . . . Repair Stations . | . . . Recycling Units 2 | . 2 . Scanalyzers . | . . . Garrison Access . | . . . Total Hacks 32 | . 28 4 Successful 17 | . 15 2 Failed 14 | . 12 2 Catastrophic . | . . . Database Lockouts 1 | . 1 . Manual 24 | . 20 4 Terminals 29 | . 25 4 Fabricators . | . . . Repair Stations . | . . . Recycling Units 3 | . 3 . Scanalyzers . | . . . Garrison Access . | . . . Terminal Hacks 7 | . 5 2 Robot Analysis 4 | . 3 1 Prototype ID Bank 3 | . 2 1 Fabricator Hacks . | . . . Repair Station Hacks . | . . . Recycling Unit Hacks 2 | . 2 . Retrieve Components 2 | . 2 . Scanalyzer . | . . . Garrison Access Hacks . | . . . Unauthorized Hacks 8 | . 8 . Terminals 8 | . 8 . Botnet 3 | . 3 . Skim 5 | . 5 . Fabricators . | . . . Repair Stations . | . . . Recycling Units . | . . . Scanalyzers . | . . . Garrison Access . | . . . Data Cores Recovered . | . . . Used . | . . . Hacking Detections 9 | . 8 1 Full Trace Events . | . . . Feedback Events . | . . . Feedback Blocked . | . . . Robot Schematics Acquired . | . . . Robots Built . | . . . Authchips . | . . . Time . | . . . Total Robot Build Rating . | . . . Part Schematics Acquired . | . . . Parts Built . | . . . Authchips . | . . . Time . | . . . Total Part Build Rating . | . . . Part Studies Acquired . | . . . Parts Repaired . | . . . Time . | . . . Parts Recycled . | . . . Recycled Matter . | . . . Retrieved Matter . | . . . Retrieved Components 16 | . 16 . Parts Scanalyzed . | . . . Part Schematics Acquired . | . . . Parts Damaged . | . . . Bothacking | -11 -10 -10 ------------ Run | Yrd Mat Min Used RIF Installer . | . . . Robots Hacked . | . . . Non-combat . | . . . Combat . | . . . Robot Hacks Applied . | . . . Relay Couplers Released . | . . . Fabnet Peak Effective % . | . . . Robots Rewired . | . . . Allies Hacked . | . . . Hacks Repelled . | . . . Allies | -11 -10 -10 -------- Run | Yrd Mat Min Total Allies 1 | . . 1 Largest Group 1 | . . 1 Highest-Rated Group 31 | . . 31 Highest-Rated Ally 31 | . . 31 Total Orders . | . . . Ally Attacks . | . . . Total Damage . | . . . Kills . | . . . Allies Corrupted . | . . . Allies Melted . | . . . Intel | -11 -10 -10 ------- Run | Yrd Mat Min Active Infowar (turns) 1387 | 87 1173 127 Seismic 1387 | 87 1173 127 Robot Analysis Total 4 | . 3 1 Derelict Logs Recovered 1 | . . 1 Drone Launches . | . . . Drone Recoveries . | . . . Exploration | -11 -10 -10 ------------- Run | Yrd Mat Min Turns Passed 1484 | 180 1177 127 Spaces Moved 703 | 76 580 47 Core 3 | 3 . . Treads 374 | 73 298 3 Legs . | . . . Wheels 326 | . 282 44 Hover . | . . . Flight . | . . . Fastest Speed 50 | 50 160 175 Average Speed 167 | 155 167 184 Slowest Speed 320 | 160 175 320 Overloaded Moves . | . . . Propulsion Burnouts . | . . . Robots Hopped . | . . . Potential Cave-ins . | . . . Cave-ins Triggered . | . . . Exploration Rate (%) 40 | 4 96 21 Regions Visited 2 Branch Regions 1 Pre-discovered Areas 3 | . 2 1 Known Exits Taken 1 | . 1 . Unknown Exits Taken 1 | 1 . . Scrap Searched . | . . . Spaces Dug . | . . . Terrain Destroyed . | . . . Melee . | . . . Projectile . | . . . AOE . | . . . Terrain Rammed . | . . . Walls Destroyed . | . . . Machines Disabled . | . . . Actions | -11 -10 -10 --------- Run | Yrd Mat Min Total 865 | 105 696 64 Wait 28 | . 27 1 Move 701 | 75 579 47 Hop . | . . . Pick Up 31 | 7 24 . Fast Attach 9 | 7 2 . Attach 3 | . . 3 Detach . | . . . Swap 4 | . 4 . Drop 11 | . 11 . Fire 73 | 14 47 12 Melee . | . . . Ram 2 | . 1 1 Kick . | . . . Crush 3 | 2 1 . Escape Stasis . | . . . Rewire . | . . . Trap . | . . . Miscellaneous . | . . . Route ------- -11/Scrapyard -10/Materials (discovered 6 exits: *Mat x3 / *Min x2 / Sub) -10/Mines (discovered 3 exits: *Mat x2 / Sub) History --------- Turn | Location | Event 31 | -11/Scrapyard | Discovered new exit (range 16) 181 | -11/Scrapyard | Entered Materials 182 | -10/Materials | Met a group of wandering Federalists 323 | -10/Materials | Build established: Mutant 408 | -10/Materials | Discovered new exit (range 5) 550 | -10/Materials | Discovered new exit (range 16) 826 | -10/Materials | Discovered new exit (range 11) 1057 | -10/Materials | Discovered new exit (range 16) 1167 | -10/Materials | Identified exit to Mines 1207 | -10/Materials | Learned 4 Recycling zone layouts 1237 | -10/Materials | Learned location of 2 exits from Mines 1256 | -10/Materials | Learned 2 Materials zone layouts 1266 | -10/Materials | Learned location of Storage (-8) 1268 | -10/Materials | Learned location of Recycling (-8) 1269 | -10/Materials | Learned location of 1 exit from Recycling 1273 | -10/Materials | Learned location of 1 exit from Recycling 1285 | -10/Materials | Identified exit to Subcaves 1285 | -10/Materials | Learned location of 1 exit from Materials 1306 | -10/Materials | Central database locked down 1358 | -10/Materials | Entered Mines 1359 | -10/Mines | Assembled infested the area 1359 | -10/Mines | Identified exit to Materials 1436 | -10/Mines | Learned location of Mines (-9) 1444 | -10/Mines | Met a Derelict testing a Signal Generator 1453 | -10/Mines | Core integrity fell below 50% 1480 | -10/Mines | Core integrity fell below 20% 1485 | -10/Mines | Destroyed by D-53 Grenadier with Mini Grenade Launcher Last Messages --------------- 01458_ Com. Wheel destroyed. 01460_ S-10 Pest destroyed. 01460_ Switching to secondary target: S-10 Pest. 01463_ Ion Engine destroyed. 01468_ S-10 Pest destroyed. 01474_ Seismic Survey Station disabled. 01475_ ALERT: Intercepting significant anomalous signal. Redirecting assault force. 01477_ Acquired 21 matter. 01478_ O6-UN9(g): "Looks like the friends we called actually did show up to play. Couldn't you guys just take that other tunnel?" 01479_ D-53 Grenadier: "LOCATED POTENTIAL SOURCE OF ANOMALOUS SIGNAL. NEUTRALIZING." 01479_ O6-UN9(g) destroyed. 01479_ Assault Rifle destroyed. 01481_ The unstable cave ceiling collapses. 01481_ S-10 Pest destroyed. 01482_ Seismic Survey Station disabled. 01484_ Ion Engine destroyed. Map ----- +----------------------------------------------------+ | ?????????????????????????????????????????????????? | | ?????????????????????????????????????????????????? | | ?????????????????????????????????????????????????? | | ?????????????????????????????????????????????????? | | ????????????????????????????????????????#########? | | ????????????????????????????????##??????# #? | | ???????????????????????????????? ??????# #? | | ????????????????????????????????# ??????# """ #? | | ????????????????????????????????# #?????# """ #? | | ????????????????????????????????# #?????# """ #? | | ????????????????????????????##### ####??# #? | | ????????????????????????????# #??# #? | | ????????????????????????????# #??# = #? | | ????????????????????????????# """ #??# =%=#? | | ????????????????????????????# """ #### ! #? | | ????????????????????????????# """ #T# ##? | | ????????????????????????????# ##### ### #?? | | ????????????????????????????### ######???# ? #?? | | ?????????????????############## #????????#######?? | | ?????????????????# ## ####?????????????? | | ?????????????????# """ " T# #?????????????? | | ?????????????????# #### #?????????????? | | ?????????????????# #??# #?????????????? | | ?????????????????# #??# #?????????????? | | ?????????????????# < ##?# #?????????????? | | ?????????????????# @ #?# #?????????????? | | ?????????????????## ##?# #?????????????? | | ??????????????????## #??# #?????????????? | | ?????????????????## #### #?????????????? | | ????????????????## ##%#?????????????? | | ????????????????# # ###???????????? | | ?????????????# dk #???????????? | | ??????????? # d #???????????? | | ???????????? r## ###### ### #???????????? | | ???????????? ??## ??????## #?? #???????????? | | ????????????? ????# ???????## #? #???????????? | | ?????????????????? ?????????# #??#???????????? | | ?????????????????#??????????## ##??????????????? | | ?????????????????????????????#####???????????????? | | ?????????????????????????????????????????????????? | | ?????????????????????????????????????????????????? | | ?????????????????????????????????????????????????? | | ?????????????????????????????????????????????????? | | ?????????????????????????????????????????????????? | | ?????????????????????????????????????????????????? | | ?????????????????????????????????????????????????? | | ?????????????????????????????????????????????????? | | ?????????????????????????????????????????????????? | | ?????????????????????????????????????????????????? | | ?????????????????????????????????????????????????? | +----------------------------------------------------+ Best States ------------- Heat Dissipation 25 Energy Generation 10 Energy Capacity 250 Matter Stores 300 Matter Capacity 350 Sight Range 16 Terrain Scan Density 10 Evasion (%) 40 Recoil Reduction 2 Item Schematics ----------------- None Robot Schematics ------------------ None Fabricated ------------ Nothing Repaired ---------- Nothing Studied --------- None Alien Tech Used ----------------- None Achievements -------------- None Challenges ------------ None Game ------ Seed FusionProjectileShockpuncher Manual? 0 Play Time 00:11:53 Cumulative 70.0 hours Start 2026.08.24 @ 15:20:59 End 2026.08.24 @ 15:31:30 Sessions 1 Manual Loads 0 Difficulty Rogue Special Mode None Game No. 68 Rogue 68 Adventurer 0 Explorer 0 Win Type - Total 3 Types 3/0/0/0/0/0/0/0/0/0 Lore% 40 Gallery% 44 Achievement% 40 Wizard Run 0 Options --------- Layout 1 ASCII 0 Keyboard 0 Movement Arrows Keybinds 0 Fullscreen 2 Font 32/SmallcapsGlow Map View 50x35 Zoom Use 0% Tactical HUD 1 Map Filters NONE Filters NONE Steam 1 RUN: e3a19b18-0f5d-40d6-a1b7-4da70fa29b17